fUST/lending_fUST_20250905
["ID","MTS","AMOUNT","RATE_DAILY","PERIOD"]
[383606329,1757026242017,-480.0,0.00017305,2]
[383606330,1757026242027,-623.64,0.00017305,2]
[383606331,1757026242037,-151.0,0.00017318,2]
[383606332,1757026242048,-151.0,0.00017318,2]
[383606333,1757026242057,-151.26354934,0.00017318,2]
[383606334,1757026242067,-2347.87260389,0.00017318,2]
[383606335,1757026242077,-151.0,0.00017318,2]
[383606336,1757026242087,-151.0,0.00017318,2]
[383606337,1757026242096,-151.0,0.00017318,2]
[383606338,1757026242106,-151.0,0.00017318,2]
[383606339,1757026242115,-151.0,0.00017318,2]
[383606340,1757026242125,-151.0,0.00017318,2]
[383606341,1757026242135,-151.0,0.00017318,2]
[383606342,1757026242145,-187.78006525,0.00017318,2]
[383606343,1757026242154,-297.0,0.00017318,2]
[383606344,1757026242164,-203.43290435,0.00017318,2]
[383606345,1757026242174,-500.0,0.00017351,2]
[383606346,1757026242183,-1500.0,0.00017394,2]
[383606347,1757026242194,-1500.0,0.00017394,2]
[383606348,1757026242203,-1500.0,0.00017429,2]
[383606349,1757026242213,-444.96,0.00017438,2]
[383606350,1757026242223,-500.0,0.00017458,2]
[383606351,1757026242232,-480.0,0.00017578,2]
[383606353,1757026242242,-480.0,0.00017578,2]
[383606355,1757026242251,-480.0,0.00017578,2]
[383606356,1757026242261,-509.94,0.00017578,2]
[383606357,1757026242271,-480.0,0.00017578,2]
[383606358,1757026242281,-943.56,0.00017578,2]
[383606359,1757026242291,-480.0,0.00017578,2]
[383606360,1757026242300,-480.0,0.00017578,2]
[383606361,1757026242309,-480.0,0.00017578,2]
[383606362,1757026242319,-480.0,0.00017578,2]
[383606363,1757026242329,-676.5,0.00017578,2]
[383606364,1757026242338,-579.6,0.00017578,2]
[383606365,1757026242348,-480.0,0.00017579,2]
[383606366,1757026242358,-578.0,0.00017579,2]
[383606367,1757026242367,-480.0,0.00017579,2]
[383606368,1757026242377,-623.64,0.00017579,2]
[383606369,1757026242386,-151.0,0.00017712,2]
[383606370,1757026242396,-360.0,0.00017725,2]
[383606371,1757026242405,-500.0,0.00017732,2]
[383606372,1757026242415,-480.0,0.00017852,2]
[383606373,1757026242424,-480.0,0.00017852,2]
[383606374,1757026242434,-480.0,0.00017852,2]
[383606375,1757026242445,-509.94,0.00017852,2]
[383606376,1757026242454,-480.0,0.00017852,2]
[383606377,1757026242464,-943.56,0.00017852,2]
[383606380,1757026242474,-480.0,0.00017852,2]
[383606382,1757026242484,-480.0,0.00017852,2]
[383606384,1757026242494,-480.0,0.00017852,2]
[383606386,1757026242503,-480.0,0.00017852,2]
[383606388,1757026242512,-676.5,0.00017852,2]
[383606389,1757026242522,-579.6,0.00017852,2]
[383606390,1757026242531,-480.0,0.00017853,2]
[383606391,1757026242541,-578.0,0.00017853,2]
[383606392,1757026242552,-480.0,0.00017853,2]
[383606393,1757026242561,-623.64,0.00017853,2]
[383606394,1757026242571,-1414.66697941,0.00017942,2]
[383606395,1757026242580,-2000.0,0.00017942,2]
[383606396,1757026242590,-2000.0,0.00017976,2]
[383606397,1757026242599,-764.0,0.00018,2]
[383606398,1757026242608,-500.0,0.00018006,2]
[383606399,1757026242618,-480.0,0.00018126,2]
[383606400,1757026242627,-480.0,0.00018126,2]
[383606402,1757026242642,-480.0,0.00018126,2]
[383606404,1757026242651,-509.94,0.00018126,2]
[383606405,1757026242665,-480.0,0.00018126,2]
[383606406,1757026242676,-943.56,0.00018126,2]
[383606407,1757026242687,-307.18,0.00018126,2]
[383606408,1757026242697,-480.0,0.00018126,2]
[383606409,1757026242707,-480.0,0.00018126,2]
[383606411,1757026242717,-480.0,0.00018126,2]
[383606413,1757026242727,-676.5,0.00018126,2]
[383606415,1757026242737,-579.6,0.00018126,2]
[383606417,1757026242746,-353.13,0.00018127,2]
[383606419,1757026242757,-578.0,0.00018127,2]
[383606421,1757026242766,-480.0,0.00018127,2]
[383606423,1757026242775,-623.64,0.00018127,2]
[383606425,1757026242785,-460.0,0.00018273,2]
[383606427,1757026242794,-500.0,0.0001828,2]
[383606429,1757026242804,-480.0,0.000184,2]
[383606431,1757026242814,-492.2,0.000184,2]
[383606433,1757026242824,-480.0,0.000184,2]
[383606435,1757026242835,-509.94,0.000184,2]
[383606438,1757026242844,-480.0,0.000184,2]
[383606440,1757026242854,-943.56,0.000184,2]
[383606442,1757026242864,-480.0,0.000184,2]
[383606444,1757026242873,-480.0,0.000184,2]
[383606446,1757026242883,-480.0,0.000184,2]
[383606448,1757026242893,-676.5,0.000184,2]
[383606450,1757026242903,-579.6,0.000184,2]
[383606452,1757026242912,-578.0,0.00018401,2]
[383606454,1757026242922,-480.0,0.00018401,2]
[383606456,1757026242931,-623.64,0.00018401,2]
[383606458,1757026242942,-2500.0,0.0001849,2]
[383606460,1757026242951,-2500.0,0.00018524,2]
[383606462,1757026242962,-500.0,0.00018554,2]
[383606464,1757026242971,-992.4087931,0.00018669,2]
[383606467,1757026242981,-480.0,0.00018673,2]
[383606469,1757026242990,-480.0,0.00018673,2]
[383606471,1757026243003,-480.0,0.00018673,2]
[383606473,1757026243013,-480.0,0.00018673,2]
[383606475,1757026243023,-585.94,0.00018674,2]
[383606477,1757026243033,-509.94,0.00018674,2]
[383606479,1757026243043,-943.56,0.00018674,2]
[383606481,1757026243053,-480.0,0.00018674,2]
[383606483,1757026243063,-676.5,0.00018674,2]
[383606485,1757026243073,-579.6,0.00018674,2]
[383606487,1757026243083,-578.0,0.00018675,2]
[383606489,1757026243092,-480.0,0.00018675,2]
[383606491,1757026243102,-623.64,0.00018675,2]
[383606493,1757026243111,-194.72792766,0.00018687,2]
[383606495,1757026243120,-587.0,0.00018728,2]
[383606497,1757026243130,-10026.0827261,0.00018791,2]
[383606499,1757026243141,-560.0,0.00018821,2]
[383606501,1757026243150,-7590.5725675,0.00018822,2]
[383606503,1757026243160,-500.0,0.00018828,2]
[383606505,1757026243169,-480.0,0.00018947,2]
[383606506,1757026243179,-480.0,0.00018947,2]
[383606507,1757026243190,-480.0,0.00018947,2]
[383606508,1757026243200,-480.0,0.00018947,2]
[383606509,1757026243210,-509.94,0.00018948,2]
[383606510,1757026243220,-943.56,0.00018948,2]
[383606511,1757026243229,-215.21094915,0.00018948,2]
[383606512,1757026243239,-676.5,0.00018948,2]
[383606513,1757026243249,-579.6,0.00018948,2]
[383606514,1757026243259,-578.0,0.00018949,2]
[383606515,1757026243269,-480.0,0.00018949,2]
[383606516,1757026243278,-623.64,0.00018949,2]
[383606517,1757026243289,-5135.7371915,0.00019025,2]
[383606518,1757026243298,-3000.0,0.00019038,2]
[383606519,1757026243308,-388.3851953,0.00019052,2]
[383606520,1757026243318,-388.3851953,0.00019052,2]
[383606521,1757026243327,-388.3851953,0.00019052,2]
[383606522,1757026243337,-388.3851953,0.00019052,2]
[383606523,1757026243348,-388.3851953,0.00019052,2]
[383606525,1757026243358,-1550.46260552,0.00019072,2]
[383606527,1757026243368,-500.0,0.00019102,2]
[383606528,1757026243378,-975.0,0.00019132,2]
[383606529,1757026243387,-633.0,0.00019132,2]
[383606530,1757026243397,-2153.0,0.00019132,2]
[383606531,1757026243407,-4026.0,0.00019132,2]
[383606532,1757026243416,-221.4363329,0.00019207,2]
[383606533,1757026243427,-480.0,0.00019221,2]
[383606534,1757026243438,-480.0,0.00019221,2]
[383606535,1757026243449,-480.0,0.00019221,2]
[383606536,1757026243459,-480.0,0.00019221,2]
[383606537,1757026243469,-509.94,0.00019222,2]
[383606538,1757026243480,-943.56,0.00019222,2]
[383606539,1757026243489,-676.5,0.00019222,2]
[383606540,1757026243500,-579.6,0.00019222,2]
[383606541,1757026243510,-578.0,0.00019223,2]
[383606542,1757026243522,-623.64,0.00019223,2]
[383606543,1757026243532,-2237.1214443,0.00019333,2]
[383606544,1757026243542,-1693.6856726,0.00019365,2]
[383606545,1757026243553,-660.0,0.00019369,2]
[383606546,1757026243563,-529.33191851,0.00019376,2]
[383606547,1757026243573,-321.16,0.00019495,2]
[383606548,1757026243584,-480.0,0.00019495,2]
[383606549,1757026243595,-480.0,0.00019495,2]
[383606550,1757026243605,-480.0,0.00019495,2]
[383606551,1757026243615,-509.94,0.00019496,2]
[383606552,1757026243627,-943.56,0.00019496,2]
[383606553,1757026243637,-676.5,0.00019496,2]
[383606554,1757026243648,-579.6,0.00019496,2]
[383606555,1757026243658,-578.0,0.00019497,2]
[383606556,1757026243667,-623.64,0.00019497,2]
[383606557,1757026243678,-3000.0,0.0001952,2]
[383606558,1757026243689,-1145.937862,0.00019576,2]
[383606559,1757026243699,-2500.0,0.00019586,2]
[383606560,1757026243709,-7339.08659859,0.00019697,2]
[383606561,1757026243721,-480.0,0.00019769,2]
[383606562,1757026243733,-302.59,0.00019769,2]
[383606563,1757026243743,-480.0,0.00019769,2]
[383606564,1757026243754,-509.94,0.0001977,2]
[383606565,1757026243765,-943.56,0.0001977,2]
[383606566,1757026243777,-676.5,0.0001977,2]
[383606567,1757026243787,-579.6,0.0001977,2]
[383606568,1757026243798,-578.0,0.00019771,2]
[383606569,1757026243809,-623.64,0.00019771,2]
[383606570,1757026243820,-10639.89907236,0.000199,2]
[383606571,1757026243830,-760.0,0.00019917,2]
[383606572,1757026243840,-160.0,0.00019944,3]
[383606573,1757026243850,-303.8632618,0.0002,2]
[383606574,1757026243862,-4000.0,0.0002,4]
[383606575,1757026243874,-183.7261356,0.00020011,2]
[383606576,1757026243884,-480.0,0.00020043,2]
[383606577,1757026243895,-480.0,0.00020043,2]
[383606578,1757026243907,-509.94,0.00020044,2]
[383606579,1757026243918,-943.56,0.00020044,2]
[383606580,1757026243928,-676.5,0.00020044,2]
[383606581,1757026243938,-579.6,0.00020044,2]
[383606582,1757026243949,-578.0,0.00020045,2]
[383606583,1757026243960,-623.64,0.00020045,2]
[383606584,1757026243971,-624.706164,0.00020187,2]
[383606585,1757026243981,-518.139493,0.00020277,5]
[383606586,1757026243992,-480.0,0.00020317,2]
[383606587,1757026244007,-480.0,0.00020317,2]
[383606588,1757026244019,-509.94,0.00020318,2]
[383606589,1757026244030,-943.56,0.00020318,2]
[383606590,1757026244043,-676.5,0.00020318,2]
[383606591,1757026244053,-579.6,0.00020318,2]
[383606592,1757026244063,-578.0,0.00020319,2]
[383606593,1757026244073,-623.64,0.00020319,2]
[383606594,1757026244084,-860.0,0.00020465,2]
[383606595,1757026244095,-823.0,0.00020483,2]
[383606596,1757026244106,-480.0,0.00020591,2]
[383606597,1757026244117,-480.0,0.00020591,2]
[383606598,1757026244128,-509.94,0.00020592,2]
[383606599,1757026244140,-943.56,0.00020592,2]
[383606600,1757026244150,-676.5,0.00020592,2]
[383606601,1757026244160,-579.6,0.00020592,2]
[383606602,1757026244171,-578.0,0.00020593,2]
[383606603,1757026244181,-623.64,0.00020593,2]
[383606604,1757026244191,-3000.0,0.00020616,2]
[383606605,1757026244201,-178.515,0.00020691,2]
[383606606,1757026244211,-638.2220636,0.00020859,2]
[383606607,1757026244221,-160.06609355,0.00020859,2]
[383606608,1757026244231,-2550.33536614,0.00020859,2]
[383606609,1757026244242,-639.62410983,0.00020859,2]
[383606610,1757026244252,-321.60386274,0.00020859,2]
[383606611,1757026244262,-1285.12903549,0.00020859,2]
[383606612,1757026244374,-480.0,0.00020865,2]
[383606613,1757026244385,-480.0,0.00020865,2]
[383606614,1757026244394,-509.94,0.00020866,2]
[383606615,1757026244404,-943.56,0.00020866,2]
[383606616,1757026244414,-676.5,0.00020866,2]
[383606617,1757026244425,-579.6,0.00020866,2]
[383606618,1757026244436,-578.0,0.00020867,2]
[383606619,1757026244446,-623.64,0.00020867,2]
[383606620,1757026244455,-352.6981167,0.00020897,2]
[383606621,1757026244464,-2000.0,0.000209,2]
[383606622,1757026244473,-150.0,0.00021,2]
[383606623,1757026244483,-4000.0,0.00021,4]
[383606624,1757026244492,-960.0,0.00021013,2]
[383606625,1757026244501,-800.0,0.00021017,2]
[383606626,1757026244511,-800.0,0.00021023,2]
[383606627,1757026244520,-800.0,0.00021049,2]
[383606628,1757026244531,-800.0,0.00021066,2]
[383606629,1757026244540,-800.0,0.0002108,2]
[383606630,1757026244549,-800.0,0.00021096,2]
[383606631,1757026244559,-480.0,0.00021139,2]
[383606632,1757026244569,-595.82,0.00021139,2]
[383606633,1757026244578,-509.94,0.0002114,2]
[383606634,1757026244587,-943.56,0.0002114,2]
[383606635,1757026244596,-676.5,0.0002114,2]
[383606636,1757026244605,-579.6,0.0002114,2]
[383606637,1757026244615,-578.0,0.00021141,2]
[383606638,1757026244624,-623.64,0.00021141,2]
[383606639,1757026244634,-800.0,0.00021143,2]
[383606640,1757026244643,-800.0,0.00021146,2]
[383606641,1757026244652,-800.0,0.00021172,2]
[383606642,1757026244662,-708.33191936,0.0002121,2]
[383606643,1757026244816,-359.50100004,0.00015655,2]
[383606644,1757026244952,-3481.18019382,0.00015655,2]
[383606654,1757026467325,494.0,0.00027397,120]
[383606656,1757026692267,2474.80390012,0.0001525,6]
[383606664,1757026920369,1009.0,0.000136,2]
[383606673,1757027226111,-635.117931,0.00013699,2]
[383606674,1757027226131,-265.55206299,0.0001555,2]
[383606675,1757027226152,-96.92551763,0.0001565,3]
[383606676,1757027228088,-184.09301812,0.0001565,3]
[383606677,1757027245114,-44.25146425,0.0001565,3]
[383606678,1757027245137,-162.63,0.0001565,3]
[383606679,1757027245160,-209.71,0.0001565,3]
[383606680,1757027245183,-169.05,0.0001565,3]
[383606681,1757027245205,-68.91829653,0.0001565,3]
[383606729,1757027432069,-214.73136512,0.00015397,2]
[383606731,1757027432079,-93.36793487,0.00015553,2]
[383606769,1757027440284,-20.45477979,0.00015243,2]
[383606786,1757027446280,-194.27658533,0.00015243,2]
[383606787,1757027446290,-299.23995011,0.00015553,2]
[383606788,1757027446300,-438.28170347,0.0001565,3]
[383606789,1757027446309,-300.0,0.0001565,2]
[383606790,1757027446319,-500.0,0.0001565,2]
[383606791,1757027446328,-500.0,0.0001565,2]
[383606792,1757027446337,-500.0,0.0001565,2]
[383606793,1757027446346,-500.0,0.0001565,2]
[383606794,1757027446356,-500.0,0.0001565,2]
[383606795,1757027446365,-39.5685303,0.0001565,2]
[383606796,1757027778656,23164.71366106,0.00029458,120]
[383606797,1757027866102,1500.02269061,0.0001525,6]
[383606811,1757028428143,-658.724829,0.00013699,2]
[383606812,1757028428167,-274.33996596,0.00015544,2]
[383606813,1757028433087,-25.66003404,0.00015544,2]
[383606814,1757028433111,-1374.70128371,0.00015545,2]
[383606975,1757028638187,-265.55206299,0.00015438,2]
[383606977,1757028638197,-10567.6827771,0.00015526,2]
[383606979,1757028638206,-300.0,0.00015531,2]
[383606981,1757028638215,-352.15252179,0.00015545,2]
[383606982,1757028638224,-1038.23617541,0.00015546,2]
[383606984,1757028638234,-288.88,0.00015641,3]
[383606987,1757028638243,-866.68,0.00015641,3]
[383606989,1757028638254,-500.0,0.00015644,2]
[383606991,1757028638264,-500.0,0.00015644,2]
[383606993,1757028638274,-500.0,0.00015644,2]
[383606994,1757028638283,-500.0,0.00015644,2]
[383606996,1757028638292,-279.96356098,0.00015644,2]
[383606998,1757028638301,-500.0,0.00015644,2]
[383607000,1757028638311,-306.69918817,0.00015644,2]
[383607003,1757028638320,-500.0,0.00015644,2]
[383607004,1757028638331,-500.0,0.00015644,2]
[383607006,1757028638340,-500.0,0.00015644,2]
[383607008,1757028638350,-500.0,0.00015644,2]
[383607010,1757028638360,-500.0,0.00015644,2]
[383607012,1757028638369,-500.0,0.00015644,2]
[383607013,1757028638379,-433.47565267,0.00015644,2]
[383607014,1757028638388,-500.0,0.00015644,2]
[383607015,1757028638397,-500.0,0.00015644,2]
[383607016,1757028638406,-500.0,0.00015644,2]
[383607017,1757028638415,-529.40874641,0.00015644,2]
[383607018,1757028638425,-500.0,0.00015644,2]
[383607019,1757028638434,-500.0,0.00015644,2]
[383607020,1757028638443,-500.0,0.00015644,2]
[383607021,1757028638452,-500.0,0.00015644,2]
[383607022,1757028638461,-500.0,0.00015644,2]
[383607023,1757028638471,-500.0,0.00015644,2]
[383607024,1757028638480,-500.0,0.00015644,2]
[383607025,1757028638489,-500.0,0.00015644,2]
[383607026,1757028638499,-500.0,0.00015644,2]
[383607027,1757028638508,-500.0,0.00015644,2]
[383607028,1757028638517,-500.0,0.00015644,2]
[383607029,1757028638526,-500.0,0.00015644,2]
[383607030,1757028638536,-567.05918888,0.00015644,2]
[383607031,1757028638545,-214.80934639,0.00015644,2]
[383607032,1757028638554,-500.0,0.00015644,2]
[383607033,1757028638563,-500.0,0.00015644,2]
[383607034,1757028638574,-500.0,0.00015644,2]
[383607035,1757028638584,-500.0,0.00015644,2]
[383607036,1757028638593,-500.0,0.00015644,2]
[383607037,1757028638602,-500.0,0.00015644,2]
[383607038,1757028638612,-500.0,0.00015644,2]
[383607039,1757028638621,-500.0,0.00015644,2]
[383607040,1757028638631,-500.0,0.00015644,2]
[383607041,1757028638640,-500.0,0.00015644,2]
[383607042,1757028638649,-500.0,0.00015644,2]
[383607043,1757028638659,-500.0,0.00015644,2]
[383607044,1757028638668,-192.38947274,0.00015644,2]
[383607045,1757028638681,-500.0,0.00015644,2]
[383607046,1757028638691,-500.0,0.00015644,2]
[383607047,1757028638701,-500.0,0.00015644,2]
[383607048,1757028638710,-500.0,0.00015644,2]
[383607049,1757028638720,-500.0,0.00015644,2]
[383607050,1757028638730,-500.0,0.00015644,2]
[383607051,1757028638739,-500.0,0.00015644,2]
[383607052,1757028638749,-500.0,0.00015644,2]
[383607053,1757028638760,-500.0,0.00015644,2]
[383607054,1757028638770,-500.0,0.00015644,2]
[383607055,1757028638780,-500.0,0.00015644,2]
[383607056,1757028638790,-500.0,0.00015644,2]
[383607057,1757028638800,-500.0,0.00015644,2]
[383607058,1757028638810,-500.0,0.00015644,2]
[383607059,1757028638819,-500.0,0.00015644,2]
[383607060,1757028638829,-563.58180412,0.00015644,2]
[383607061,1757028638839,-480.0,0.00015644,2]
[383607062,1757028638848,-480.0,0.00015644,2]
[383607063,1757028638857,-480.0,0.00015644,2]
[383607064,1757028638867,-480.0,0.00015644,2]
[383607065,1757028638876,-480.0,0.00015644,2]
[383607066,1757028638886,-480.0,0.00015644,2]
[383607067,1757028638895,-480.0,0.00015644,2]
[383607068,1757028638904,-480.0,0.00015644,2]
[383607069,1757028638913,-480.0,0.00015644,2]
[383607070,1757028638923,-480.0,0.00015644,2]
[383607071,1757028638932,-480.0,0.00015644,2]
[383607072,1757028638942,-480.0,0.00015644,2]
[383607073,1757028638952,-417.69099722,0.00015644,2]
[383607074,1757028638962,-480.0,0.00015644,2]
[383607075,1757028638971,-533.27541289,0.00015644,2]
[383607076,1757028638981,-480.0,0.00015644,2]
[383607077,1757028638990,-480.0,0.00015644,2]
[383607078,1757028639000,-1764.14512231,0.00015644,2]
[383607079,1757028639009,-46602.12673699,0.00015645,2]
[383607080,1757028639018,-480.0,0.00015646,2]
[383607081,1757028639028,-480.0,0.00015646,2]
[383607082,1757028639037,-480.0,0.00015646,2]
[383607083,1757028639047,-480.0,0.00015646,2]
[383607084,1757028639057,-163.15,0.00015646,2]
[383607085,1757028639067,-480.0,0.00015646,2]
[383607086,1757028639076,-480.0,0.00015646,2]
[383607087,1757028639085,-480.0,0.00015646,2]
[383607088,1757028639095,-480.0,0.00015646,2]
[383607089,1757028639105,-480.0,0.00015646,2]
[383607090,1757028639115,-480.0,0.00015646,2]
[383607091,1757028639124,-480.0,0.00015646,2]
[383607092,1757028639134,-480.0,0.00015646,2]
[383607093,1757028639143,-480.0,0.00015646,2]
[383607094,1757028639152,-480.0,0.00015646,2]
[383607095,1757028639162,-480.0,0.00015646,2]
[383607096,1757028639171,-480.0,0.00015646,2]
[383607097,1757028639181,-480.0,0.00015646,2]
[383607098,1757028639190,-480.0,0.00015646,2]
[383607099,1757028639200,-480.0,0.00015646,2]
[383607100,1757028639209,-480.0,0.00015646,2]
[383607101,1757028639218,-480.0,0.00015646,2]
[383607102,1757028639227,-985.01,0.00015646,2]
[383607103,1757028639236,-480.0,0.00015646,2]
[383607104,1757028639245,-488.69,0.00015646,2]
[383607105,1757028639255,-480.0,0.00015646,2]
[383607106,1757028639265,-480.0,0.00015646,2]
[383607107,1757028639274,-480.0,0.00015646,2]
[383607108,1757028639284,-555.45,0.00015646,2]
[383607109,1757028639293,-374.90319563,0.00015646,2]
[383607110,1757028639303,-560.44896882,0.00015646,2]
[383607111,1757028639312,-560.44896882,0.00015646,2]
[383607112,1757028639322,-560.44896882,0.00015646,2]
[383607113,1757028639331,-560.44896882,0.00015646,2]
[383607114,1757028639340,-560.44896882,0.00015646,2]
[383607115,1757028639349,-560.44896882,0.00015646,2]
[383607116,1757028639359,-560.44896882,0.00015646,2]
[383607117,1757028639368,-560.44896882,0.00015646,2]
[383607118,1757028639378,-560.44896882,0.00015646,2]
[383607119,1757028639387,-560.44896882,0.00015646,2]
[383607120,1757028639396,-584.04682014,0.00015646,2]
[383607121,1757028639406,-584.04682014,0.00015646,2]
[383607122,1757028639415,-584.04682014,0.00015646,2]
[383607123,1757028639425,-584.04682014,0.00015646,2]
[383607124,1757028639434,-584.04682014,0.00015646,2]
[383607125,1757028639443,-584.04682014,0.00015646,2]
[383607126,1757028639452,-584.04682014,0.00015646,2]
[383607127,1757028639462,-584.04682014,0.00015646,2]
[383607128,1757028639471,-605.91750958,0.00015646,2]
[383607129,1757028639480,-605.91750958,0.00015646,2]
[383607130,1757028639490,-605.91750958,0.00015646,2]
[383607131,1757028639499,-580.74862841,0.00015646,2]
[383607132,1757028639509,-580.74862841,0.00015646,2]
[383607133,1757028639519,-580.74862841,0.00015646,2]
[383607134,1757028639528,-580.74862841,0.00015646,2]
[383607135,1757028639538,-480.0,0.00015647,2]
[383607136,1757028639547,-480.0,0.00015647,2]
[383607137,1757028639557,-480.0,0.00015647,2]
[383607138,1757028639567,-152.18,0.00015647,2]
[383607139,1757028639577,-480.0,0.00015647,2]
[383607140,1757028639586,-480.0,0.00015647,2]
[383607141,1757028639597,-480.0,0.00015647,2]
[383607142,1757028639607,-480.0,0.00015647,2]
[383607143,1757028639617,-480.0,0.00015647,2]
[383607144,1757028639626,-230.31,0.00015647,2]
[383607145,1757028639636,-480.0,0.00015647,2]
[383607146,1757028639646,-480.0,0.00015647,2]
[383607147,1757028639656,-480.0,0.00015647,2]
[383607148,1757028639666,-480.0,0.00015647,2]
[383607149,1757028639675,-480.0,0.00015647,2]
[383607150,1757028639690,-480.0,0.00015647,2]
[383607151,1757028639699,-480.0,0.00015647,2]
[383607152,1757028639707,-648.31,0.00015647,2]
[383607153,1757028639717,-480.0,0.00015647,2]
[383607154,1757028639728,-480.0,0.00015647,2]
[383607155,1757028639737,-480.0,0.00015647,2]
[383607156,1757028639747,-480.0,0.00015647,2]
[383607157,1757028639757,-480.0,0.00015647,2]
[383607159,1757028639767,-480.0,0.00015647,2]
[383607160,1757028639777,-480.0,0.00015647,2]
[383607161,1757028639788,-573.91,0.00015647,2]
[383607162,1757028639798,-480.0,0.00015647,2]
[383607164,1757028639808,-480.0,0.00015647,2]
[383607165,1757028639817,-480.0,0.00015647,2]
[383607167,1757028639827,-480.0,0.00015647,2]
[383607169,1757028639836,-480.0,0.00015647,2]
[383607171,1757028639847,-480.0,0.00015647,2]
[383607172,1757028639856,-480.0,0.00015647,2]
[383607174,1757028639866,-480.0,0.00015647,2]
[383607176,1757028639876,-480.0,0.00015647,2]
[383607177,1757028639885,-480.0,0.00015647,2]
[383607179,1757028639895,-597.66,0.00015647,2]
[383607180,1757028639904,-417.15472785,0.00015647,2]
[383607182,1757028639914,-232.93421481,0.00015647,2]
[383607184,1757028639923,-160.0,0.00015647,2]
[383607186,1757028639933,-160.0,0.00015647,2]
[383607188,1757028639943,-203.15181488,0.00015647,2]
[383607189,1757028639952,-530.40833076,0.00015647,2]
[383607192,1757028639962,-846.4110323,0.00015647,2]
[383607195,1757028639972,-217.5338025,0.00015648,2]
[383607198,1757028639982,-480.0,0.00015649,2]
[383607200,1757028639991,-480.0,0.00015649,2]
[383607203,1757028640002,-480.0,0.00015649,2]
[383607206,1757028640011,-480.0,0.00015649,2]
[383607209,1757028640020,-480.0,0.00015649,2]
[383607212,1757028640030,-480.0,0.00015649,2]
[383607215,1757028640039,-480.0,0.00015649,2]
[383607218,1757028640049,-480.0,0.00015649,2]
[383607220,1757028640058,-482.54,0.00015649,2]
[383607221,1757028640068,-480.0,0.00015649,2]
[383607222,1757028640077,-480.0,0.00015649,2]
[383607223,1757028640087,-480.0,0.00015649,2]
[383607224,1757028640096,-480.0,0.00015649,2]
[383607225,1757028640106,-480.0,0.00015649,2]
[383607226,1757028640115,-604.56241249,0.00015649,2]
[383607227,1757028640126,-480.0,0.00015649,2]
[383607228,1757028640137,-480.0,0.00015649,2]
[383607229,1757028640147,-480.0,0.00015649,2]
[383607230,1757028640157,-480.0,0.00015649,2]
[383607231,1757028640167,-480.0,0.00015649,2]
[383607232,1757028640176,-480.0,0.00015649,2]
[383607233,1757028640187,-480.0,0.00015649,2]
[383607234,1757028640196,-480.0,0.00015649,2]
[383607235,1757028640205,-572.76,0.00015649,2]
[383607236,1757028640215,-313.06,0.00015649,2]
[383607237,1757028640225,-520.0165151,0.00015649,2]
[383607238,1757028640234,-480.0,0.00015649,2]